Cogmind - Beta 9.3 @@@ ROGUE MODE // 2019.12.18 @ 14:48:16 // Winter2019/RPGLIKE Player: Pimski Result: Destroyed by DAS Turret with DAS Cannon Performance ------------- Evolutions (1) 500 Regions Visited (5) 1000 Robots Destroyed (34) 170 Value Destroyed (522) 522 Prototype IDs (24) 480 Alien Tech Used (0) 0 Bonus (328) 328 TOTAL SCORE: 3000 Bonus ------- Follower Combat Kills 28 Aligned with FarCom 300 Cogmind --------- Core Integrity 0/600 Matter 300/300 Energy 125/125 System Corruption 0% Temperature Cool (0) Movement Flying (40) Location -9/Exiles Parts ------- > --- POWER (1) -------- Light Ion Engine > --- PROPULSION (3) --- Flight Unit > --- UTILITY (1) ------ Armor Integrity Analyzer > --- WEAPON (3) ------- Mining Claw Mining Claw Makeshift Sword > --- INVENTORY (1) ---- Protomatter-56 Peak State ------------ > --- POWER ------------ Light Ion Engine > --- PROPULSION ------- Flight Unit Flight Unit Flight Unit > --- UTILITY ---------- Hacking Suite > --- WEAPON ----------- Mining Claw Mining Claw Makeshift Sword > --- INVENTORY -------- Protomatter [Rating: 13] Favorites ----------- Power Light Ion Engine Engine Light Ion Engine Propulsion Flight Unit Leg Aluminum Leg Wheel Wheel Flight Unit Flight Unit Utility Hacking Suite Device Structural Scanner Processor Armor Integrity Analyzer Hackware Hacking Suite Weapon Mining Claw Energy Gun Medium Laser Slashing Weapon Mining Claw Build | -11 -10 -10 -9 -9 -9 ------- Run | Scr Mat Min Mat Min Exi Slots Evolved 4 | 1 1 2 . . . Power . | . . . . . . Propulsion 2 | . . 2 . . . Utility . | . . . . . . Weapon 2 | 1 1 . . . . Parts Attached 20 | 2 7 6 . 2 3 Power 2 | . 1 1 . . . Engine 2 | . 1 1 . . . Core . | . . . . . . Reactor . | . . . . . . Propulsion 10 | 1 1 4 . 1 3 Treads . | . . . . . . Leg . | . . . . . . Wheel 2 | 1 1 . . . . Hover . | . . . . . . Flight 8 | . . 4 . 1 3 Utility 3 | . 2 . . 1 . Device 1 | . 1 . . . . Storage . | . . . . . . Processor 1 | . . . . 1 . Hackware 1 | . 1 . . . . Protection . | . . . . . . Artifact . | . . . . . . Weapon 5 | 1 3 1 . . . Energy Gun 1 | 1 . . . . . Energy Cannon . | . . . . . . Ballistic Gun . | . . . . . . Ballistic Cannon . | . . . . . . Launcher . | . . . . . . Special Weapon . | . . . . . . Impact Weapon . | . . . . . . Slashing Weapon 4 | . 3 1 . . . Piercing Weapon . | . . . . . . Special Melee Weapon . | . . . . . . Unidentified Prototypes . | . . . . . . Parts Lost 2 | . . . . . 2 Power . | . . . . . . Propulsion 2 | . . . . . 2 Utility . | . . . . . . Weapon . | . . . . . . Highest Loss Streak 2 | . . . . . 2 Average Slot Usage (%) 99 | . 98 100 100 100 100 Engine 13 | . 17 13 12 12 12 Wheel 6 | . 17 5 . . . Flight 23 | . . 24 37 37 37 Device 1 | . 4 . . . . Processor 4 | . . . . 11 12 Hackware 7 | . 10 13 12 . . Energy Gun 2 | . 10 . . . . Slashing Weapon 38 | . 37 41 37 37 37 Naked Turns . | . . . . . . Heaviest Build 10 | 7 10 9 9 9 9 Greatest Support 27 | 10 10 12 12 12 27 Greatest Overweight (x) 2 | . . 1 . . 2 Average Overweight (x) . | . . . . . . Largest Inventory Capacity 1 | . 1 1 1 1 1 Average Capacity . | . . 1 1 1 1 Most Carried 1 | . 1 1 1 1 1 Average Carried . | . . . 1 . 1 Final Capacity 1 | . 1 1 1 1 1 Final Carried 1 | . 1 1 1 1 1 Class Distribution -------------------- 63% | Scavenger-Mutant 36% | Mutant Dominant Class ---------------- Mutant | -10/Materials Scavenger-Mutant | -10/Mines Scavenger-Mutant | -9/Materials Scavenger-Mutant | -9/Mines Scavenger-Mutant | -9/Exiles Resources | -11 -10 -10 -9 -9 -9 ----------- Run | Scr Mat Min Mat Min Exi Matter Collected 400 | 220 70 60 . 20 30 Remotely . | . . . . . . Salvage Created 1208 | 64 301 418 . 172 253 Parts 56 | 1 13 26 . 11 5 Haulers Intercepted . | . . . . . . Recyclers Shooed 1 | 1 . . . . . Parts Field Recycled . | . . . . . . Retrieved Matter . | . . . . . . Parts Self-Destructed . | . . . . . . Prevented . | . . . . . . Kills | -11 -10 -10 -9 -9 -9 ------- Run | Scr Mat Min Mat Min Exi Combat Hostiles Destroyed 25 | . 4 8 . 6 7 Melee 23 | . 2 8 . 6 7 Guns 2 | . 2 . . . . Classes Destroyed 8 | 1 2 3 . 1 1 Worker 1 | . . 1 . . . Tunneler 1 | . . 1 . . . Recycler 6 | 1 1 3 . 1 . Operator 1 | . 1 . . . . Swarmer 9 | . . 5 . 4 . Grunt 8 | . 4 3 . 1 . Duelist 1 | . . . . 1 . Assembled 6 | . . . . . 6 Best Kill Streak 6 | 1 2 2 . 4 6 Combat Bots Only 6 | . 2 2 . 4 6 Max Kills in Single Turn 1 | 1 1 1 . 1 1 Gunslinging . | . . . . . . Exploded . | . . . . . . Melee 1 | . 1 1 . 1 1 Uniques/NPCs Destroyed 1 | . . . . . 1 8R-AWN (-9/Exiles) Combat | -11 -10 -10 -9 -9 -9 -------- Run | Scr Mat Min Mat Min Exi Damage Taken 1570 | . 183 270 12 281 824 Core 1343 | . 147 224 9 240 723 Absorbed by Shields . | . . . . . . Redirected to Core 789 | . 121 147 9 136 376 Core Remaining (%) 100 | 100 . 100 . . . Volleys Fired 9 | 2 7 . . . . Largest 2 | 2 2 . . . . Hottest 90 | 90 90 . . . . Shots Fired 18 | 4 14 . . . . Gun 18 | 4 14 . . . . Cannon . | . . . . . . Launcher . | . . . . . . Special . | . . . . . . Kinetic . | . . . . . . Thermal 9 | 2 7 . . . . Explosive . | . . . . . . Electromagnetic 9 | 2 7 . . . . Robot Hit Streak 5 | 4 5 . . . . Robot Miss Streak 2 | . 2 . . . . Penetration Max . | . . . . . . Secondary Targets . | . . . . . . Shots Hit Robots 111 | 4 22 30 . 20 35 Core Hits 48 | 2 9 13 . 8 16 Critical Hits 5 | . . 3 . 1 1 Critical Kills . | . . . . . . Critical Parts Destroyed 5 | . . 3 . 1 1 Melee Attacks 150 | . 18 59 1 29 43 Impact . | . . . . . . Slashing 150 | . 18 59 1 29 43 Piercing . | . . . . . . Sneak Attacks 11 | . 2 7 . 2 . Combat Hostiles 1 | . . . . 1 . Follow-up Attacks 25 | . 3 12 . 4 6 Damage Inflicted 3755 | 49 550 1123 . 748 1285 Guns 150 | 49 101 . . . . Cannons . | . . . . . . Explosions . | . . . . . . Melee 3605 | . 449 1123 . 748 1285 Ramming . | . . . . . . Kinetic . | . . . . . . Thermal 63 | 25 38 . . . . Explosive . | . . . . . . Electromagnetic 87 | 24 63 . . . . Impact . | . . . . . . Slashing 3605 | . 449 1123 . 748 1285 Piercing . | . . . . . . Highest Corruption . | . . . . . . Average Corruption . | . . . . . . Corruption Purged . | . . . . . . Overload Shots . | . . . . . . Overflow Damage 189 | . 36 109 . 40 4 Projectiles . | . . . . . . Explosions . | . . . . . . Melee 189 | . 36 109 . 40 4 Knockbacks . | . . . . . . Impact . | . . . . . . Kinetic . | . . . . . . Secondary . | . . . . . . Self-Inflicted Damage . | . . . . . . Shots . | . . . . . . Rammed . | . . . . . . Targets Rammed . | . . . . . . Kicked . | . . . . . . Crushed . | . . . . . . Highest Temperature 231 | 60 231 1 . . . Average Temperature 107 | 33 127 1 . . . Received Heat Transfer 159 | . 99 42 . 18 . Siege Activations . | . . . . . . Robots Corrupted . | . . . . . . Combat Hostiles . | . . . . . . Parts Fried . | . . . . . . Impact Corruptions . | . . . . . . Robots Melted . | . . . . . . Combat Hostiles . | . . . . . . Parts Melted . | . . . . . . Heat Transferred 185 | 74 111 . . . . Parts Sabotaged . | . . . . . . Parts Stolen . | . . . . . . Parts Stripped . | . . . . . . Power Chain Reactions . | . . . . . . Missiles Intercepted . | . . . . . . Alert | -11 -10 -10 -9 -9 -9 ------- Run | Scr Mat Min Mat Min Exi Peak Influence 302 | 5 143 302 86 193 . Average Influence 132 | 2 86 188 70 116 . Maximum Alert Level 1 | . . 1 . . . Low Security (%) 81 | 100 100 52 100 100 . Level 1 18 | . . 47 . . . Level 2 . | . . . . . . Level 3 . | . . . . . . Level 4 . | . . . . . . Level 5 . | . . . . . . High Security . | . . . . . . Max Security . | . . . . . . Squads Dispatched 3 | . 2 . 1 . . Investigation 1 | . 1 . . . . Extermination . | . . . . . . Reinforcement 2 | . 1 . 1 . . Assault . | . . . . . . Garrison . | . . . . . . Intercept . | . . . . . . Construction Impeded . | . . . . . . Haulers Reinforced . | . . . . . . Stealth | -11 -10 -10 -9 -9 -9 --------- Run | Scr Mat Min Mat Min Exi Distress Signals 1 | . . . 1 . . Communications Jammed . | . . . . . . Distress Signals . | . . . . . . Times Spotted 67 | . 9 18 11 11 18 Peak Tracking Total 11 | . 3 4 11 6 9 Tactical Retreats 10 | . . 4 . 4 2 Traps | -11 -10 -10 -9 -9 -9 ------- Run | Scr Mat Min Mat Min Exi Traps Triggered 2 | . 2 . . . . Indirectly . | . . . . . . Trap Hack Attempts . | . . . . . . Triggered . | . . . . . . Disarmed . | . . . . . . Reprogrammed . | . . . . . . Reused . | . . . . . . Traps Extracted . | . . . . . . Installed . | . . . . . . Triggered . | . . . . . . Machines | -11 -10 -10 -9 -9 -9 ---------- Run | Scr Mat Min Mat Min Exi Machines Disabled 1 | . . . . . 1 Max in Single Turn 1 | . . . . . 1 Machines Sabotaged . | . . . . . . Garrisons Compromised . | . . . . . . Overloaded Fab Kills . | . . . . . . Fab Network Shutdowns . | . . . . . . Hacking | -11 -10 -10 -9 -9 -9 --------- Run | Scr Mat Min Mat Min Exi Machines Accessed 4 | . 1 . 1 . 2 Terminals 2 | . 1 . 1 . . Fabricators . | . . . . . . Repair Stations . | . . . . . . Recycling Units . | . . . . . . Scanalyzers . | . . . . . . Garrison Access . | . . . . . . Total Hacks 8 | . 2 . 4 . 2 Successful 5 | . . . 3 . 2 Failed 3 | . 2 . 1 . . Catastrophic . | . . . . . . Database Lockouts . | . . . . . . Manual 7 | . 2 . 4 . 1 Terminals 6 | . 2 . 4 . . Fabricators . | . . . . . . Repair Stations . | . . . . . . Recycling Units . | . . . . . . Scanalyzers . | . . . . . . Garrison Access . | . . . . . . Terminal Hacks 4 | . . . 2 . 2 Record 1 | . . . . . 1 Prototype ID Bank 1 | . . . 1 . . Branch Access Points 1 | . . . 1 . . EX-Prototype ID Bank 1 | . . . . . 1 Fabricator Hacks . | . . . . . . Repair Station Hacks . | . . . . . . Recycling Unit Hacks . | . . . . . . Scanalyzer . | . . . . . . Garrison Access Hacks . | . . . . . . Unauthorized Hacks 2 | . . . 2 . . Terminals 1 | . . . 1 . . Botnet 1 | . . . 1 . . Fabricators . | . . . . . . Repair Stations . | . . . . . . Recycling Units . | . . . . . . Scanalyzers . | . . . . . . Garrison Access . | . . . . . . Data Cores Recovered . | . . . . . . Used . | . . . . . . Hacking Detections 2 | . 1 . 1 . . Full Trace Events . | . . . . . . Feedback Events . | . . . . . . Feedback Blocked . | . . . . . . Robot Schematics Acquired . | . . . . . . Robots Built . | . . . . . . Matter . | . . . . . . Time . | . . . . . . Total Robot Build Rating . | . . . . . . Part Schematics Acquired . | . . . . . . Parts Built . | . . . . . . Matter . | . . . . . . Time . | . . . . . . Total Part Build Rating . | . . . . . . Parts Repaired . | . . . . . . Time . | . . . . . . Parts Recycled . | . . . . . . Recycled Matter . | . . . . . . Retrieved Matter . | . . . . . . Retrieved Components . | . . . . . . Parts Scanalyzed . | . . . . . . Part Schematics Acquired . | . . . . . . Parts Damaged . | . . . . . . Bothacking | -11 -10 -10 -9 -9 -9 ------------ Run | Scr Mat Min Mat Min Exi Used RIF Installer . | . . . . . . Robots Hacked . | . . . . . . Non-combat . | . . . . . . Combat . | . . . . . . Robot Hacks Applied . | . . . . . . Relay Couplers Released . | . . . . . . Robots Rewired . | . . . . . . Allies Hacked . | . . . . . . Hacks Repelled . | . . . . . . Allies | -11 -10 -10 -9 -9 -9 -------- Run | Scr Mat Min Mat Min Exi Total Allies 3 | . . 3 . . . Largest Group 3 | . . 3 . . . Highest-Rated Group 40 | . . 40 . . . Highest-Rated Ally 16 | . . 16 . . . Total Orders . | . . . . . . Ally Attacks 24 | . . 24 . . . Total Damage 239 | . . 239 . . . Kills 5 | . . 5 . . . Allies Corrupted . | . . . . . . Allies Melted . | . . . . . . Intel | -11 -10 -10 -9 -9 -9 ------- Run | Scr Mat Min Mat Min Exi Robot Analysis Total . | . . . . . . Derelict Logs Recovered 4 | . . 3 . 1 . Drone Launches . | . . . . . . Drone Recoveries . | . . . . . . Exploration | -11 -10 -10 -9 -9 -9 ------------- Run | Scr Mat Min Mat Min Exi Turns Passed 1407 | 23 346 455 35 281 267 Spaces Moved 1976 | 16 285 590 97 518 470 Core . | . . . . . . Treads . | . . . . . . Legs 3 | 3 . . . . . Wheels 432 | 13 285 134 . . . Hover . | . . . . . . Flight 1541 | . . 456 97 518 470 Fastest Speed 34 | 80 80 34 34 34 34 Average Speed 44 | 87 80 44 34 34 34 Slowest Speed 200 | 120 80 117 34 34 200 Overloaded Moves . | . . . . . . Propulsion Burnouts . | . . . . . . Robots Hopped 15 | . . 7 . 8 . Cave-ins Triggered . | . . . . . . Exploration Rate (%) 52 | 3 57 86 20 83 68 Regions Visited 5 Branch Regions 3 Pre-discovered Areas 2 | . . 1 . . 1 Known Exits Taken 1 | . . . 1 . . Unknown Exits Taken 4 | 1 1 1 . 1 . Scrap Searched 2 | . . 2 . . . Spaces Dug 10 | . . 3 1 3 3 Terrain Destroyed 10 | . . 3 1 3 3 Melee 10 | . . 3 1 3 3 Projectile . | . . . . . . AOE . | . . . . . . Actions | -11 -10 -10 -9 -9 -9 --------- Run | Scr Mat Min Mat Min Exi Total 2291 | 20 358 692 97 588 536 Wait 127 | . 39 35 . 34 19 Move 1942 | 15 284 575 96 502 470 Hop 14 | . . 7 . 7 . Pick Up 3 | . 1 1 . 1 . Fast Attach 17 | 2 7 4 . 1 3 Attach . | . . . . . . Detach . | . . . . . . Swap 3 | . . 2 . 1 . Drop 15 | 1 3 5 . 3 3 Fire 9 | 2 7 . . . . Melee 116 | . 13 42 1 24 36 Ram . | . . . . . . Kick . | . . . . . . Crush . | . . . . . . Escape Stasis . | . . . . . . Rewire . | . . . . . . Trap . | . . . . . . Miscellaneous 45 | . 4 21 . 15 5 Route ------- -11/Scrapyard -10/Materials (discovered 2 exits: *Mat / [*Min]) -10/Mines (discovered 2 exits: *Mat x2) -9/Materials (discovered 2 exits: *Min x2) -9/Mines (discovered 3 exits: [*Mat x2] / *Exi) -9/Exiles History --------- Turn | Location | Event 1 | -11/Scrapyard | Upgraded with Weapon slot (x1) 1 | -11/Scrapyard | Discovered new exit (range 1) 24 | -11/Scrapyard | Entered Materials 119 | -10/Materials | Upgraded with Weapon slot (x1) 176 | -10/Materials | Discovered new exit (range 16) 305 | -10/Materials | Discovered new exit (range 8) 317 | -10/Materials | Build established: Mutant 370 | -10/Materials | Entered Mines 377 | -10/Mines | Assisted by bots powering up and referring to "LRC-V3" 386 | -10/Mines | Learned Materials emergency access door positions 490 | -10/Mines | Reached level 2 505 | -10/Mines | Discovered new exit (range 16) 514 | -10/Mines | Upgraded with Propulsion slot (x1) 531 | -10/Mines | Upgraded with Propulsion slot (x1) 678 | -10/Mines | Learned location of Zion (-7) 741 | -10/Mines | A weapon hastily lodged in a ceiling crevice suddenly fell to the ground 751 | -10/Mines | Learned Materials trap positions 819 | -10/Mines | Discovered new exit (range 5) 825 | -10/Mines | Entered Materials 826 | -9/Materials | Loaded intel: 13 trap records 827 | -9/Materials | Reached level 3 828 | -9/Materials | Build established: Scavenger-Mutant 830 | -9/Materials | Identified exit to Mines 860 | -9/Materials | Entered Mines 862 | -9/Mines | Reached level 4 863 | -9/Mines | Learned Materials emergency access door positions 866 | -9/Mines | Discovered new exit (range 10) 874 | -9/Mines | Joined a pair of Derelicts in attacking an 0b10 outpost 1074 | -9/Mines | Discovered new exit (range 8) 1139 | -9/Mines | Deemed a non-threat by the Exiles lab entrance 1139 | -9/Mines | Discovered new exit (range 5) 1141 | -9/Mines | Entered Exiles 1149 | -9/Exiles | Met 8R-AWN 1156 | -9/Exiles | Met EX-HEX 1171 | -9/Exiles | Met EX-DEC 1208 | -9/Exiles | Met EX-BIN 1213 | -9/Exiles | Aligned with FarCom system 1213 | -9/Exiles | Given EX-Vault access code 1221 | -9/Exiles | Opened EX-Vault 1230 | -9/Exiles | Warned to stay clear of 0b10 Research branches 1287 | -9/Exiles | Attacked by the Exiles 1351 | -9/Exiles | Destroyed 8R-AWN 1395 | -9/Exiles | Core integrity fell below 50% 1403 | -9/Exiles | Core integrity fell below 20% 1408 | -9/Exiles | Destroyed by DAS Turret with DAS Cannon Last Messages --------------- 01341_ Penetrated by HV Slug. 01341_ HV Slug penetrates Wall. 01344_ HV Slug penetrates Machine. 01344_ Penetrated by HV Slug. 01344_ HV Slug penetrates Wall. 01346_ HV Slug penetrates Machine. 01346_ Machine disabled. 01346_ HV Slug penetrates Machine. 01348_ HV Slug penetrates Wall. 01350_ Protomatter-18 decays. 01350_ Penetrated by HV Slug. 01351_ 8R-AWN destroyed. 01354_ Used Protomatter to restore core integrity (+45, depleted) 01359_ Used Protomatter to restore core integrity (+57, depleted) 01361_ Upgraded: Mass Support (+15) 01372_ as-33702 destroyed. 01394_ Knocked back. 01401_ Mining Claw follow-up attack on DAS Turret. 01402_ Flight Unit destroyed. 01404_ Knocked back. Map ----- +----------------------------------------------------+ | ##" ""????????????"" """#???????## | | #"" #????????????#"" #????????# | | ?# #????????????#"" #????????#" | | ????# ##???????????#"" "#????????#" | | ?????## "#???????????? ""?????????#" | | ?#####" ###???????????" "?????????##" | | !!""""" ##??????????# #????????##"" | | "###"" ######???### ###?######"" | | "#?##" """#####X# #"###""""""" | | ##??#" """""" " "" | | !""""""###???#"# "" """ " | | #######??????#### " " | | ????????????????### | | ??????????????????### | | ????????????????????## | | ?????????????????????## | | ??????????????????????##" | | ???????????????????????#""" """""" | | ??????????????????????##" ######"" | | ??????????????????????#"" ""##????### | | ?????????????????????##""" """##???????? | | ?????????????????????#""" """##????????? | | ?????????????????????#""" ""#?????????? | | ?????????????????????#"" ########??## | | ?????????????????????#"" ## ####" | | ?????????????????????#"" @ """" | | ?????????????????????##"" t | | ??????????????????????#"""" | | ??????????????????????## | | ???????????????????????#" " | | ???????????????????????#"""" """# # | | ???????????????????????#"" """"## # | | ???????????????????????#" """"##### # | | ???????????????????????#""" """#??## # | | ???????????????????????## ""##??#! | | ????????????????????????#"" """##???#" | | ????????????????????????##""" ##????#" | | ?????????????????????????##"""" ##?????#!!"" | | ???????????????????????????## #??????##### | | ?????????????????????????????#### ##??????????? | | ????????????????????????????????## #???????????? | | ?????????????????????????????????# ????????????? | | ?????????????????????????????????# ????????????? | | ??????????????????????????????????? ?????????????? | | ?????????????????????????????????????????????????? | | ?????????????????????????????????????????????????? | | ?????????????????????????????????????????????????? | | ?????????????????????????????????????????????????? | | ?????????????????????????????????????????????????? | | ?????????????????????????????????????????????????? | +----------------------------------------------------+ Best States ------------- Heat Dissipation 25 Energy Generation 10 Energy Capacity 125 Matter Stores 300 Matter Capacity 300 Sight Range 16 Terrain Scan Density 10 Resistance: KI 15 Evasion (%) 63 Armor Integrity Analysis 33 Offensive Hacking 15 Item Schematics ----------------- None Robot Schematics ------------------ None Fabricated ------------ Nothing Alien Tech Used ----------------- None Achievements -------------- None Challenges ------------ None RPGLIKE | -11 -10 -10 -9 -9 -9 --------- Run | Scr Mat Min Mat Min Exi Levels Raised 3 | . . 1 1 1 . XP Earned 8757 | 3000 500 2172 1535 1200 350 XP Spent 7400 | 500 1050 1800 200 1400 2450 Upgrades 18 | 1 2 4 1 4 6 Propulsion Slot 2 | . . 2 . . . Weapon Slot 2 | 1 1 . . . . Mass Support 3 | . . . . . 3 Inventory Capacity 1 | . 1 . . . . Melee Accuracy 6 | . . 2 . 2 2 Hack Attack % 1 | . . . 1 . . KI Resistance % 3 | . . . . 2 1 Protomatter Created 272 | . 41 90 . 91 50 Integrity Restored 808 | . 74 350 . 282 102 Core 722 | . 74 297 . 249 102 Parts 86 | . . 53 . 33 . Protomatter Decayed 141 | . . 9 . 97 35 Game ------ Seed InertialSlugRedistributor Manual? 0 Play Time 00:31:01 Cumulative 620.3 hours Start 2019.12.18 @ 14:16:21 End 2019.12.18 @ 14:48:16 Sessions 1 Manual Loads 0 Difficulty Rogue Special Mode Winter2019/RPGLIKE Game No. 400 Rogue 400 Adventurer 0 Explorer 0 Win Type - Total 102 Types 68/6/8/10/5/1/4 Lore% 97 Gallery% 94 Achievement% 80 Wizard Run 0 Options --------- ASCII 0 Keyboard 0 Movement Numpad Keybinds 0 Fullscreen 2 Font 18/SmallcapsGlow Map View 76x50 Tactical HUD 1 Map Filters NONE Filters NONE Steam 1 RUN: f5136c40-e6a0-4fc3-a67c-fe8f51547cb7